Cogmind - Beta 14 @@@ ROGUE MODE // 2024.08.23 @ 00:30:26 Player: Parra Result: Destroyed by G-47 Trooper with Particle Gun Performance ------------- Evolutions (2) 1000 Regions Visited (5) 1000 Robots Destroyed (7) 35 Value Destroyed (135) 135 Prototype IDs (24) 480 Alien Tech Used (0) 0 Bonus (300) 300 TOTAL SCORE: 2950 Bonus ------- Aligned with FarCom 300 Cogmind --------- Core Integrity 0/550 Matter 295/300 Energy 98/100 System Corruption 0% Temperature Cool (9) Movement Core (50) Location -8/Materials Parts ------- > --- POWER (2) -------- (None) > --- PROPULSION (4) --- (None) > --- UTILITY (3) ------ (None) > --- WEAPON (2) ------- (None) > --- INVENTORY (5) ---- Light Fission Core Large Storage Unit Firepult Grenade Launcher Peak State ------------ > --- POWER ------------ Light Ion Engine > --- PROPULSION ------- Aluminum Leg Aluminum Leg > --- UTILITY ---------- Small Storage Unit Improved Terrain Scanner > --- WEAPON ----------- Firepult > --- INVENTORY -------- Light Ion Engine Light Fission Core Large Storage Unit Seismic Detector Medium Laser Grenade Launcher [Rating: 28] Favorites ----------- Power Light Ion Engine Engine Light Ion Engine Propulsion Aluminum Leg Leg Aluminum Leg Flight Unit Flight Unit Utility Small Storage Unit Device Improved Terrain Scanner Storage Small Storage Unit Weapon Medium Laser Energy Gun Medium Laser Energy Cannon Latent Energy Streamer Ballistic Gun Assault Rifle Launcher Grenade Launcher Special Melee Weapon Datajack Build | -11 -10 -10 -10 -9 -8 ------- Run | Yrd Mat Min Exi Min Mat Slots Evolved 4 | . . . . . 4 Power 1 | . . . . . 1 Propulsion 2 | . . . . . 2 Utility 1 | . . . . . 1 Weapon . | . . . . . . Parts Attached 23 | 6 1 5 2 6 3 Power 3 | 1 . 1 . 1 . Engine 3 | 1 . 1 . 1 . Core . | . . . . . . Reactor . | . . . . . . Propulsion 3 | 2 . . . . 1 Treads . | . . . . . . Leg 2 | 2 . . . . . Wheel . | . . . . . . Hover . | . . . . . . Flight 1 | . . . . . 1 Utility 3 | 1 1 1 . . . Device 2 | . 1 1 . . . Storage 1 | 1 . . . . . Processor . | . . . . . . Hackware . | . . . . . . Protection . | . . . . . . Artifact . | . . . . . . Weapon 14 | 2 . 3 2 5 2 Energy Gun 6 | 1 . 1 . 3 1 Energy Cannon 3 | . . . 2 1 . Ballistic Gun 1 | 1 . . . . . Ballistic Cannon . | . . . . . . Launcher 3 | . . 2 . 1 . Special Weapon . | . . . . . . Impact Weapon . | . . . . . . Slashing Weapon . | . . . . . . Piercing Weapon . | . . . . . . Special Melee Weapon 1 | . . . . . 1 Unidentified Prototypes 3 | . . . 2 . 1 Parts Lost 10 | . . 1 . 5 4 Power 1 | . . . . 1 . Propulsion 3 | . . . . 2 1 Utility 3 | . . 1 . . 2 Weapon 3 | . . . . 2 1 Highest Loss Streak 5 | . . 1 . 5 3 To Critical Strikes 1 | . . . . 1 . Average Slot Usage (%) 81 | . 94 92 91 84 27 Engine 11 | . 14 14 14 10 . Leg 22 | . 28 28 28 22 . Device 12 | . 9 7 14 14 8 Storage 13 | . 14 14 14 14 7 Energy Gun 7 | . 14 11 8 7 . Energy Cannon 5 | . . . 2 12 . Ballistic Gun 1 | . 14 7 . . . Launcher 5 | . . 9 8 . 7 Peak Build Rating 28 | 6 7 9 28 26 10 Average Rating 13 | 4 6 7 11 21 8 On Entrance 8 | . 6 7 9 20 9 Naked Turns 12 | . . . . . 12 Heaviest Build 28 | 12 13 14 19 28 11 Greatest Support 20 | 20 20 20 20 20 4 Greatest Overweight (x) 9 | 3 . . . 9 3 Average Overweight (x) . | . . . . 1 1 Largest Inventory Capacity 8 | 8 8 8 8 8 8 Average Capacity 7 | 7 8 8 8 8 7 Most Carried 8 | . 1 4 8 8 7 Average Carried 5 | . . 2 6 7 6 Final Capacity 8 | 8 8 8 8 8 5 Final Carried 8 | . 1 4 8 7 5 Class Distribution -------------------- 73% | Mutant 21% | Skirmisher 4% | Assassin Dominant Class ---------------- Mutant | -10/Materials Mutant | -10/Mines Mutant | -10/Exiles Skirmisher | -9/Mines Mutant | -8/Materials Resources | -11 -10 -10 -10 -9 -8 ----------- Run | Yrd Mat Min Exi Min Mat Matter Collected 545 | 230 . 183 . 94 38 Remotely . | . . . . . . Salvage Created 169 | . . 89 . 26 54 Parts 11 | . . 5 . 1 5 Haulers Intercepted . | . . . . . . Recyclers Shooed . | . . . . . . Parts Field Recycled . | . . . . . . Retrieved Matter . | . . . . . . Parts Self-Destructed . | . . . . . . Prevented . | . . . . . . Kills | -11 -10 -10 -10 -9 -8 ------- Run | Yrd Mat Min Exi Min Mat Combat Hostiles Destroyed 13 | . . 9 . 3 1 Guns 9 | . . 8 . 1 . Cannons 1 | . . . . 1 . AOE 3 | . . 1 . 1 1 Classes Destroyed 3 | . . 2 . . 1 Swarmer 6 | . . 3 . 3 . Sentry 1 | . . . . . 1 Assembled 6 | . . 6 . . . Best Kill Streak 4 | . . 4 . 3 1 Combat Bots Only 4 | . . 4 . 3 1 Max Kills in Single Turn 2 | . . 1 . 2 1 Gunslinging . | . . . . . . Exploded 1 | . . 1 . 1 1 Melee . | . . . . . . Uniques/NPCs Destroyed . | . . . . . . Combat | -11 -10 -10 -10 -9 -8 -------- Run | Yrd Mat Min Exi Min Mat Hostile Shots Fired 192 | . 8 35 . 79 70 Missed 62 | . 5 12 . 16 29 Damage Taken 1723 | . 38 379 . 546 760 Core 763 | . 26 54 . 123 560 Absorbed by Shields . | . . . . . . Core Remaining (%) 59 | 100 . . . 18 . Volleys Fired 32 | . 1 23 . 3 5 Largest 2 | . 2 2 . 1 1 Hottest 250 | . 70 80 . 250 33 Shots Fired 48 | . 2 37 1 3 5 Gun 39 | . 2 34 1 2 . Cannon 1 | . . . . 1 . Launcher 8 | . . 3 . . 5 Special . | . . . . . . Kinetic 20 | . 1 19 . . . Thermal 20 | . 1 15 1 3 . Explosive 3 | . . 3 . . . Electromagnetic 5 | . . . . . 5 Robot Hit Streak 12 | . . 6 . 9 12 Robot Miss Streak 3 | . 2 3 . . 1 Penetration Max . | . . . . . . Secondary Targets 1 | . . 1 . . . Max Gunslinging Chain 1 | . . 1 . . . Shots Hit Robots 28 | . . 20 . 3 5 Core Hits 25 | . . 18 . 4 3 Critical Kills 1 | . . 1 . . . Critical Parts Destroyed . | . . . . . . Critical Strikes 2 | . . 2 . . . Burn 1 | . . 1 . . . Destroy 1 | . . 1 . . . Melee Attacks 3 | . . . . . 3 Impact . | . . . . . . Slashing . | . . . . . . Piercing . | . . . . . . Sneak Attacks . | . . . . . . Combat Hostiles . | . . . . . . Follow-up Attacks . | . . . . . . Damage Inflicted 808 | . . 357 . 110 341 Guns 272 | . . 247 . 25 . Cannons 40 | . . . . 40 . Explosions 486 | . . 110 . 35 341 Melee . | . . . . . . Ramming 10 | . . . . 10 . Kinetic 122 | . . 122 . . . Thermal 225 | . . 125 . 100 . Explosive 339 | . . 110 . . 229 Electromagnetic 112 | . . . . . 112 Impact . | . . . . . . Slashing . | . . . . . . Piercing . | . . . . . . Highest Corruption 1 | . 1 1 1 1 . Average Corruption 1 | . 1 1 1 1 . Corruption Purged . | . . . . . . Corruption Blocked . | . . . . . . Effects 20 | . . 1 11 8 . Message Errors 4 | . . . 3 1 . Matter Fused 8 | . . 1 4 3 . Heat Flow Errors 2 | . . . . 2 . Energy Discharges 2 | . . . 1 1 . Parts Fused 1 | . . . 1 . . Data Loss (major) 2 | . . . 1 1 . Misfires 1 | . . . 1 . . Overload Shots . | . . . . . . Overflow Damage 43 | . . . . 16 27 Projectiles . | . . . . . . Explosions 43 | . . . . 16 27 Melee . | . . . . . . Knockbacks . | . . . . . . Impact . | . . . . . . Kinetic . | . . . . . . Secondary . | . . . . . . Self-Inflicted Damage 225 | . . 40 . 39 146 Shots 8 | . . 1 . 2 5 Rammed 1 | . . . . 1 . Targets Rammed 8 | . . . . 8 . Kicked 7 | . . . . 7 . Crushed . | . . . . . . Highest Temperature 240 | . 9 54 14 240 . Average Temperature 43 | . 6 24 10 97 . Received Heat Transfer 312 | . 21 120 . . 171 Siege Activations . | . . . . . . Robots Corrupted . | . . . . . . Combat Hostiles . | . . . . . . Parts Fried . | . . . . . . Impact Corruptions . | . . . . . . Robots Melted . | . . . . . . Combat Hostiles . | . . . . . . Parts Melted 3 | . . 1 . 2 . Heat Transferred 838 | . . 444 . 394 . Parts Sabotaged . | . . . . . . Parts Stolen . | . . . . . . Parts Stripped . | . . . . . . Power Chain Reactions 1 | . . . . . 1 Alert | -11 -10 -10 -10 -9 -8 ------- Run | Yrd Mat Min Exi Min Mat Peak Influence 189 | . . 127 . 53 189 Initial . | . . . . . . Average 24 | . . 108 . 1 42 Maximum Alert Level . | . . . . . . Low Security (%) 100 | 100 100 100 . 100 100 Level 1 . | . . . . . . Level 2 . | . . . . . . Level 3 . | . . . . . . Level 4 . | . . . . . . Level 5 . | . . . . . . High Security . | . . . . . . Max Security . | . . . . . . Squads Dispatched 2 | . . . . . 2 Investigation 2 | . . . . . 2 Extermination . | . . . . . . Reinforcement . | . . . . . . Assault . | . . . . . . Garrison . | . . . . . . Intercept . | . . . . . . Searches Triggered . | . . . . . . Construction Impeded . | . . . . . . Haulers Reinforced . | . . . . . . Active Scanning Responses . | . . . . . . Cargo Convoy Interrupts . | . . . . . . Stealth | -11 -10 -10 -10 -9 -8 --------- Run | Yrd Mat Min Exi Min Mat Distress Signals 1 | . . 1 . . . Communications Jammed . | . . . . . . Distress Signals . | . . . . . . Times Spotted 40 | . 8 9 . 6 17 Peak Tracking Total 9 | . 7 3 . 4 9 Tactical Retreats 5 | . . 1 . 1 3 Traps | -11 -10 -10 -10 -9 -8 ------- Run | Yrd Mat Min Exi Min Mat Traps Triggered 2 | . 1 . . . 1 Indirectly . | . . . . . . Trap Hack Attempts . | . . . . . . Triggered . | . . . . . . Disarmed . | . . . . . . Reprogrammed . | . . . . . . Reused . | . . . . . . Traps Extracted . | . . . . . . Installed . | . . . . . . Triggered . | . . . . . . Machines | -11 -10 -10 -10 -9 -8 ---------- Run | Yrd Mat Min Exi Min Mat Machines Disabled 3 | . . 1 . . 2 Max in Single Turn 1 | . . 1 . . 1 Machines Repaired . | . . . . . . Machines Dismantled . | . . . . . . Machines Sabotaged . | . . . . . . Overloaded Fab Kills . | . . . . . . Hacking | -11 -10 -10 -10 -9 -8 --------- Run | Yrd Mat Min Exi Min Mat Machines Accessed 9 | . 2 . 5 . 2 Terminals 2 | . 1 . . . 1 Fabricators . | . . . . . . Repair Stations 1 | . . . . . 1 Recycling Units 1 | . 1 . . . . Scanalyzers . | . . . . . . Garrison Access . | . . . . . . Total Hacks 63 | . 7 . 50 . 6 Successful 57 | . 4 . 50 . 3 Failed 6 | . 3 . . . 3 Catastrophic 1 | . 1 . . . . Database Lockouts . | . . . . . . Manual 3 | . . . 3 . . Terminals 4 | . 1 . . . 3 Fabricators . | . . . . . . Repair Stations 3 | . . . . . 3 Recycling Units 6 | . 6 . . . . Scanalyzers . | . . . . . . Garrison Access . | . . . . . . Terminal Hacks 52 | . . . 50 . 2 Record 50 | . . . 49 . 1 Maintenance Status 1 | . . . . . 1 Derelict Proto ID Bank 1 | . . . 1 . . Fabricator Hacks . | . . . . . . Repair Station Hacks 1 | . . . . . 1 Scan Component 1 | . . . . . 1 Recycling Unit Hacks 4 | . 4 . . . . Recycle Component 1 | . 1 . . . . Report Inventory 1 | . 1 . . . . Retrieve Matter 1 | . 1 . . . . Retrieve Components 1 | . 1 . . . . Scanalyzer . | . . . . . . Garrison Access Hacks . | . . . . . . Unauthorized Hacks . | . . . . . . Terminals . | . . . . . . Fabricators . | . . . . . . Repair Stations . | . . . . . . Recycling Units . | . . . . . . Scanalyzers . | . . . . . . Garrison Access . | . . . . . . Data Cores Recovered . | . . . . . . Used . | . . . . . . Hacking Detections 4 | . 2 . . . 2 Full Trace Events 2 | . 1 . . . 1 Feedback Events . | . . . . . . Feedback Blocked . | . . . . . . Robot Schematics Acquired . | . . . . . . Robots Built . | . . . . . . Authchips . | . . . . . . Time . | . . . . . . Total Robot Build Rating . | . . . . . . Part Schematics Acquired . | . . . . . . Parts Built . | . . . . . . Authchips . | . . . . . . Time . | . . . . . . Total Part Build Rating . | . . . . . . Parts Repaired . | . . . . . . Time . | . . . . . . Parts Recycled 1 | . 1 . . . . Recycled Matter . | . . . . . . Retrieved Matter . | . . . . . . Retrieved Components 1 | . 1 . . . . Parts Scanalyzed . | . . . . . . Part Schematics Acquired . | . . . . . . Parts Damaged . | . . . . . . Bothacking | -11 -10 -10 -10 -9 -8 ------------ Run | Yrd Mat Min Exi Min Mat Used RIF Installer . | . . . . . . Robots Hacked 1 | . . . . . 1 Non-combat . | . . . . . . Combat 1 | . . . . . 1 Robot Hacks Applied 1 | . . . . . 1 parse_system 1 | . . . . . 1 Relay Couplers Released . | . . . . . . Fabnet Peak Effective % . | . . . . . . Robots Rewired . | . . . . . . Allies Hacked . | . . . . . . Hacks Repelled . | . . . . . . Allies | -11 -10 -10 -10 -9 -8 -------- Run | Yrd Mat Min Exi Min Mat Total Allies . | . . . . . . Largest Group . | . . . . . . Highest-Rated Group . | . . . . . . Highest-Rated Ally . | . . . . . . Total Orders . | . . . . . . Ally Attacks . | . . . . . . Total Damage . | . . . . . . Kills . | . . . . . . Allies Corrupted . | . . . . . . Allies Melted . | . . . . . . Intel | -11 -10 -10 -10 -9 -8 ------- Run | Yrd Mat Min Exi Min Mat Robot Analysis Total . | . . . . . . Derelict Logs Recovered 1 | . . . . 1 . Drone Launches . | . . . . . . Drone Recoveries . | . . . . . . Exploration | -11 -10 -10 -10 -9 -8 ------------- Run | Yrd Mat Min Exi Min Mat Turns Passed 3072 | 43 230 250 1243 952 354 Spaces Moved 2104 | 28 186 150 1023 504 213 Core 218 | 11 . . . 56 151 Treads . | . . . . . . Legs 1824 | 17 186 150 1023 448 . Wheels . | . . . . . . Hover . | . . . . . . Flight 62 | . . . . . 62 Fastest Speed 40 | 50 120 120 120 120 40 Average Speed 136 | 123 120 120 120 179 139 Slowest Speed 500 | 200 120 120 120 500 200 Overloaded Moves . | . . . . . . Propulsion Burnouts . | . . . . . . Robots Hopped 2 | . . . . . 2 Cave-ins Triggered . | . . . . . . Exploration Rate (%) 42 | 3 35 33 93 77 16 Regions Visited 5 Branch Regions 3 Pre-discovered Areas 1 | . . . 1 . . Known Exits Taken . | . . . . . . Unknown Exits Taken 5 | 1 1 1 1 1 . Scrap Searched 4 | . . 2 . 2 . Spaces Dug . | . . . . . . Terrain Destroyed 61 | . . 22 . 3 36 Melee . | . . . . . . Projectile . | . . . . . . AOE 61 | . . 22 . 3 36 Terrain Rammed . | . . . . . . Walls Destroyed . | . . . . . . Machines Disabled . | . . . . . . Actions | -11 -10 -10 -10 -9 -8 --------- Run | Yrd Mat Min Exi Min Mat Total 2242 | 33 190 181 1040 537 261 Wait 53 | . 1 . 2 12 38 Move 2095 | 27 185 149 1022 503 209 Hop 2 | . . . . . 2 Pick Up 8 | . 2 3 2 1 . Fast Attach 15 | 6 1 1 1 3 3 Attach 3 | . . . 1 2 . Detach 5 | . . . 3 2 . Swap 5 | . . 4 . 1 . Drop 5 | . . 1 1 2 1 Fire 32 | . 1 23 . 3 5 Melee 3 | . . . . . 3 Ram 1 | . . . . 1 . Kick 7 | . . . . 7 . Crush . | . . . . . . Escape Stasis . | . . . . . . Rewire 8 | . . . 8 . . Trap . | . . . . . . Miscellaneous . | . . . . . . Route ------- -11/Scrapyard -10/Materials (discovered 2 exits: [*Mat] / [*Min]) -10/Mines -10/Exiles (discovered 2 exits: [*Min x2]) -9/Mines -8/Materials History --------- Turn | Location | Event 15 | -11/Scrapyard | Discovered new exit (range 16) 44 | -11/Scrapyard | Entered Materials 177 | -10/Materials | Discovered new exit (range 4) 243 | -10/Materials | Discovered new exit (range 4) 274 | -10/Materials | Entered Mines 275 | -10/Mines | Assembled infested the area 318 | -10/Mines | Build established: Mutant 516 | -10/Mines | Deemed a non-threat by the Exiles lab entrance 517 | -10/Mines | Discovered new exit (range 5) 524 | -10/Mines | Entered Exiles 549 | -10/Exiles | Discovered new exit (range 14) 583 | -10/Exiles | Met 8R-AWN 601 | -10/Exiles | Met EX-HEX 652 | -10/Exiles | Met EX-BIN 862 | -10/Exiles | Met EX-DEC 873 | -10/Exiles | Learned location of Zion (-6) 937 | -10/Exiles | Discovered new exit (range 14) 1041 | -10/Exiles | Visited The Gauntlet 1443 | -10/Exiles | Aligned with FarCom system 1444 | -10/Exiles | Given EX-Vault access code 1479 | -10/Exiles | Opened EX-Vault 1490 | -10/Exiles | Found Prototype Energy Cannon 1494 | -10/Exiles | Identified Firepult 1505 | -10/Exiles | Found Prototype Energy Cannon 1505 | -10/Exiles | Identified Latent Energy Streamer 1543 | -10/Exiles | Warned to stay clear of 0b10 Research branches 1767 | -10/Exiles | Stole two prototypes: Firepult, Latent Energy Streamer 1767 | -10/Exiles | Entered Mines 1791 | -9/Mines | Discovered new exit (range 8) 2287 | -9/Mines | Build established: Skirmisher 2517 | -9/Mines | Core integrity fell below 50% 2540 | -9/Mines | Core integrity fell below 20% 2559 | -9/Mines | Lost 5 parts (1p2n2w) 2719 | -9/Mines | Entered Materials 2719 | -8/Materials | Evolved 4 slots: Power x1, Propulsion x2, Utility x1 3036 | -8/Materials | Core integrity fell below 50% 3062 | -8/Materials | Lost 3 parts (2u1w) 3071 | -8/Materials | Core integrity fell below 20% 3073 | -8/Materials | Destroyed by G-47 Trooper with Particle Gun Last Messages --------------- Imp. Terrain Scanner destroyed. U-05 Engineer builds a Wall. S-10 Pest destroyed. U-05 Engineer lays Concrete. Acquired Prototype Energy Gun. Identified Hvy. EM Shotgun. Faulty integration damages Faulty Hvy. EM Shotgun (-23). U-05 Engineer builds a Wall. U-05 Engineer lays Concrete. K-01 Serf collects debris. Faulty Hvy. EM Shotgun severed. U-05 Engineer builds a Wall. Acquired Flight Unit. K-01 Serf collects debris. U-05 Engineer lays Concrete. U-05 Engineer builds a Wall. Acquired 10 matter. Flight Unit destroyed. Penetrated by Slug. Map ----- +----------------------------------------------------+ | | | | | | | | | | | | | | | | | | | | | | | | | | | | | | | ?????????????????????##?#??????#?#????#??????????? | | ??????????????????????#?#????????????????????????? | | ????????????????????#??#??#??#???????????????????? | | ???????????????????????????????????" ???#????????? | | ?????##??#?#######??#??#######???"""?????????????? | | ???######### ####### #?? ???????????????? | | ????# g ##+######??? ???????? | | ????# s h l T ???? ???????? | | ????# s g g kg #########? ?????????? | | ###?####+### #######g # #????? ?????? | | ????# ###+######??##@ ## " #???????????? | | ????# """ # ]#???# # !Y" #???????????? | | ???## """ # """ #???# # #???#???????? | | ????# """ # """ #???# ###+######## ####+#+?? | | ????# !# """ #???# [ ! ? | | ?#??# # #?#?# ? | | ????######## ! """ #???# ? | | ???????????# """ ##??#########"#############??? | | ?????#?????# """ #???????# #??????????? | | ???????????# #??????## """ #???#?#????? | | ???????????##########????####|| ""R" #########??? | | ?????????????#????????#?????#|| "" " / | | ????????????#?????? ??#?????#|| ########???? | | ?????#??#?????#?????????###?#*%[ # #?????? | | ????????# ? ????? ? ##### ## # #?????? | | ????????????????????+ / # ###???? | | ????????? ??????????# ###+##+##* / ??? ? | | ????????????????????# [ # ## #+????? | | ????????????????????+ !] # ## #????? | | ??????????????????? # ## !# ????? | | ?????????###+######## ## #?????? | | ????????? + #?? ??? | | ?????????#?# # ######?????? | | ???????????# ######## ######?????? | | ???????????# +?????? | +----------------------------------------------------+ Best States ------------- Heat Dissipation 31 Energy Generation 10 Energy Capacity 125 Matter Stores 300 Matter Capacity 300 Sight Range 16 Terrain Scan Range 16 Terrain Scan Density 10 Evasion (%) 62 Item Schematics ----------------- None Robot Schematics ------------------ None Fabricated ------------ Nothing Alien Tech Used ----------------- None Achievements -------------- I Survived The Infestation Let's See Who's Tougher Librarian Challenges ------------ None Game ------ Seed FireSubdwellerNetwork Manual? 0 Play Time 01:11:58 Cumulative 6.3 hours Start 2024.08.22 @ 22:58:34 End 2024.08.23 @ 00:30:26 Sessions 1 Manual Loads 0 Difficulty Rogue Special Mode None Game No. 6 Rogue 6 Adventurer 0 Explorer 0 Win Type - Total 0 Types 0/0/0/0/0/0/0/0/0 Lore% 8 Gallery% 6 Achievement% 10 Wizard Run 0 Options --------- Layout 1 ASCII 0 Keyboard 1 Movement Numpad Keybinds 0 Fullscreen 1 Font 24/Smallcaps Map View 50x35 Zoom Use 0% Tactical HUD 0 Map Filters NONE Filters NONE Steam 1 RUN: ff7fb2ce-e9e9-4db4-8c40-4a1abc73c334